[Event "Polish Youth B18 Championship 2023"]
[Site "Jastrzebia Gora"]
[Date "2023.03.13"]
[Round "3.9"]
[White "Zdybel, Przemyslaw"]
[Black "Jedraszek, Pawel"]
[Result "1-0"]
[ECO "B23"]
[WhiteElo "2268"]
[BlackElo "1944"]
[Annotator "TA"]
[PlyCount "81"]
[EventDate "2023.03.11"]
[EventType "swiss"]
[EventCountry "POL"]
[SourceTitle "playchess.com"]
[Source "ChessBase"]
[SourceQuality "1"]
[TimeControl "40/5400+30:1800+30"]

{[%evp 10,81,23,-3,12,14,0,-2,15,4,15,16,28,28,20,29,34,37,34,31,35,24,66,62,73,33,70,67,97,52,44,50,57,26,36,22,69,62,50,5,10,22,29,0,31,25,35,27,64,83,136,135,138,137,264,264,253,218,218,229,223,208,464,462,447,457,445,456,547,418,1062,1041,29988,29989]} 1. e4 {[%emt 0:00:13]} c5 {[%emt 0:00:06]} 2. Nc3 {[%emt 0:00:12]} a6 {[%emt 0:00:36]} 3. g3 {[%emt 0:00:09]} b5 {[%emt 0:00:38][%cal Bb7b5,Bb5b4][%mdl 32]} 4. Bg2 {[%emt 0:00:07]} Bb7 {[%emt 0:00:05]} 5. d3 {[%emt 0:00:10]} e6 {[%emt 0:01:18]} 6. Nh3 {[%emt 0:00:17]} b4 {[%emt 0:01:36] B23: Closed Sicilian: Lines without g3.} 7. Ne2 {[%emt 0:00:37]} d5 {[%emt 0:00:16]} 8. O-O {[%emt 0:00:10]} dxe4 {[%emt 0:03:34] The position is equal.} 9. dxe4 {[%emt 0:00:26]} Qxd1 {[%emt 0:00:25]} 10. Rxd1 {[%emt 0:00:07]} Nf6 {[%emt 0:01:26]} 11. e5 {[%emt 0:00:25][%csl LRb7,LRf6]} Bxg2 {[%emt 0:00:10]} 12. Kxg2 {[%emt 0:00:07]} Nfd7 {[%emt 0:00:16]} 13. f4 {[%emt 0:00:44]} Be7 {[%emt 0:03:08] [#]} 14. Nf2 $146 {[%emt 0:05:09]} ({Predecessor:} 14. Be3 Nc6 15. c4 O-O-O 16. Nf2 Kc7 17. b3 f6 18. exf6 Bxf6 19. f5 e5 20. Ne4 {0-1 Sievers,S (2360)-Landa,K (2632) BL2-Nord 0203 2002 (2.2)}) 14... Nc6 {[%emt 0:06:45]} 15. c4 {[%emt 0:21:01]} Kd8 {[%emt 0:13:22]} 16. Be3 {[%emt 0:04:10]} Kc7 {[%emt 0:01:10]} 17. Ne4 {[%emt 0:00:41]} Na5 {[%emt 0:02:09]} 18. b3 {[%emt 0:02:57]} h6 {[%emt 0:05:57]} 19. Nd6 {[%emt 0:20:22] White is much more active.} Bxd6 {[%emt 0:10:29]} 20. Rxd6 {[%emt 0:00:06]} Nb7 {[%emt 0:00:10]} 21. Rdd1 {[%emt 0:15:25]} Kc6 {[%emt 0:05:48]} 22. h3 {[%emt 0:04:30]} (22. Rd2 {looks sharper.} a5 23. Rad1 Rhd8 24. Nc1) 22... f6 {[%emt 0:09:23]} (22... a5 $11) 23. exf6 $14 {[%emt 0:01:46]} gxf6 {[%emt 0:00:02]} 24. Rd2 {[%emt 0:04:34]} h5 {[%emt 0:02:10]} (24... f5 {simplifies} 25. a3 a5 26. Rda2 bxa3 27. Rxa3 Nb6) 25. Rad1 {[%emt 0:01:36]} Rh7 {[%emt 0:00:35]} 26. f5 {[%emt 0:00:38]} exf5 {[%emt 0:05:12]} 27. Nf4 {[%emt 0:00:18][%cal Of4h5]} Ne5 {[%emt 0:03:47]} 28. Nd5 {[%emt 0:00:31]} Rf8 {[%emt 0:01:09]} 29. Bf4 $36 {[%emt 0:01:50][%mdl 2048] White is on the roll.} Ng6 {[%emt 0:02:21]} (29... a5 $142) 30. Re1 $16 {[%emt 0:02:04] [#] Threatens to win with Re6+.} Nxf4+ {[%emt 0:01:43]} 31. Nxf4 {[%emt 0:00:20] Black must now prevent Re6+.} Kb6 {[%emt 0:02:43]} (31... Rd8 $16 32. Nd5 Rg7) 32. Rd5 $18 {[%emt 0:01:52]} h4 {[%emt 0:02:33]} 33. gxh4 {[%emt 0:00:36]} Rg8+ {[%emt 0:02:05]} 34. Kf3 {[%emt 0:00:16]} Rxh4 {[%emt 0:01:17]} 35. Rxf5 {[%emt 0:02:33]} Nd8 $2 {[%emt 0:04:47]} (35... Rh7 36. Rxf6+ Ka7) 36. Rxf6+ {[%emt 0:00:44]} Nc6 {[%emt 0:00:07]} 37. Ree6 {[%emt 0:04:09]} Ka5 {[%emt 0:00:06]} 38. Kf2 {[%emt 0:03:06]} ({Don't take} 38. Rxc6 Rxf4+ 39. Rxf4 (39. Kxf4 Rg4+ 40. Kf5 Rf4+ 41. Kg6 Rxf6+ 42. Kxf6 $11) 39... Rg3+ 40. Ke4 Re3+ 41. Kd5 Re5+ 42. Kd6 Re6+ 43. Kxc5 Rxc6+ 44. Kd5 Rh6 $18) 38... Rg5 {[%emt 0:03:09]} 39. Rd6 {[%emt 0:03:02] [#] Strongly threatening Ne6.} Re5 {[%emt 0:03:46]} (39... Rg8 $142 40. Ng6 Rxg6 41. Rxg6 Rxh3) 40. Ng6 {[%emt 0:00:00][%cal Og6e5] Nxe5! would kill now.} (40. Rxc6 Rxf4+ 41. Rxf4 Re2+ 42. Kxe2 $11) 40... Rf5+ {[%emt 0:00:00]} 41. Rxf5 {[%emt 0:06:35] Weighted Error Value: White=0.15 (very precise) /Black=0.48} 1-0

[Event "Polish Youth B18 Championship 2023"]
[Site "Jastrzebia Gora"]
[Date "2023.03.13"]
[Round "3.10"]
[White "Kacprzak, Karol"]
[Black "Karut, Kacper"]
[Result "1-0"]
[ECO "B56"]
[WhiteElo "2221"]
[BlackElo "1904"]
[Annotator "TA"]
[PlyCount "111"]
[EventDate "2023.03.11"]
[EventType "swiss"]
[EventCountry "POL"]
[SourceTitle "playchess.com"]
[Source "ChessBase"]
[SourceQuality "1"]
[TimeControl "40/5400+30:1800+30"]

{[%evp 15,111,10,27,-28,42,18,38,18,25,28,26,26,77,67,129,125,135,133,193,119,122,97,145,91,120,90,85,89,116,65,72,50,77,25,49,58,58,0,0,0,203,216,262,269,269,269,301,269,377,367,360,350,458,286,287,229,360,360,529,507,602,600,635,626,543,431,623,546,706,783,739,737,664,622,1018,931,1609,976,29976,29977,29977,29978,29978,29977,29979,29980,29980,29981,29980,29981,29981,29982,29982,29983,29983,29984,29984,29978]} 1. e4 {[%emt 0:00:04]} c5 {[%emt 0:00:04]} 2. Nf3 {[%emt 0:00:15]} d6 {[%emt 0:00:05]} 3. d4 {[%emt 0:00:19]} cxd4 {[%emt 0:00:04]} 4. Nxd4 {[%emt 0:00:05]} Nf6 {[%emt 0:00:03]} 5. Nc3 {[%emt 0:00:16]} Nc6 {[%emt 0:00:05]} 6. f3 {[%emt 0:00:27]} e5 {[%emt 0:00:08]} 7. Nb3 {[%emt 0:00:10]} Be7 {[%emt 0:00:17]} 8. Be3 {[%emt 0:00:44]} O-O {[%emt 0:00:14] 8...Be6 gains popularity.} 9. Qe2 {[%emt 0:01:46] B56: Classical Sicilian: Unusual Lines.} (9. Qd2 $142) 9... Be6 {[%emt 0:04:57]} ({Black should play} 9... d5 $11 10. Nxd5 Nxd5 11. exd5 Qxd5) 10. O-O-O $14 {[%emt 0:00:32]} Qb8 {[%emt 0:07:46]} 11. g4 {[%emt 0:03:19][%cal Bg2g4,Bg4g5][%mdl 32] White is slightly better.} Rc8 {[%emt 0:08:50] [#]} 12. g5 $146 {[%emt 0:04:06]} (12. Kb1 {is interesting.} Nb4 13. g5 Nh5 14. a3) ({Predecessor:} 12. Kb1 a5 13. g5 Nd7 14. a3 a4 15. Nc1 Nd4 16. Bxd4 exd4 17. Nb5 Bxg5 18. Nxd4 {1-0 Brodsky,M (2561)-Kryakvin,D (2472) Voronezh op-A 2006 (5)}) 12... Nh5 {[%emt 0:09:23]} 13. Kb1 {[%emt 0:16:28]} b6 {[%emt 0:17:40]} (13... Nb4 $11) 14. Nd5 {[%emt 0:05:36]} Bxd5 {[%emt 0:05:25]} (14... Bf8 $14) 15. exd5 $16 {[%emt 0:02:10]} Na5 {[%emt 0:01:21]} 16. f4 {[%emt 0:09:03]} g6 {[%emt 0:05:05] [#]} (16... Nc4 $16 {is a better defense.}) 17. f5 {[%emt 0:04:28]} Nc4 {[%emt 0:06:13]} 18. Bc1 {[%emt 0:00:13]} b5 {[%emt 0:02:29]} (18... a5 $142) 19. f6 {[%emt 0:03:09]} (19. Bh3 $142) 19... Bf8 {[%emt 0:01:21]} 20. Bh3 {[%emt 0:07:35]} Rc7 {[%emt 0:01:21]} 21. Bg4 {[%emt 0:04:19]} Nf4 {[%emt 0:00:16]} 22. Qf1 {[%emt 0:00:52]} (22. Bxf4 $16 exf4 23. Rd4) 22... Qb6 {[%emt 0:08:34]} 23. Qg1 {[%emt 0:06:32]} (23. Bxf4 $5 exf4 24. Qxf4 $16) 23... Qb7 {[%emt 0:01:16]} 24. Qf2 {[%emt 0:05:47]} (24. Qg3 $16) 24... a5 {[%emt 0:02:28]} 25. Bxf4 {[%emt 0:12:59]} a4 {[%emt 0:00:43]} 26. Bc1 {[%emt 0:01:45]} (26. Nd4 $1 $14) 26... axb3 $11 {[%emt 0:00:28]} 27. cxb3 {[%emt 0:00:32]} Qa6 $2 {[%emt 0:01:53] White leaves nothing to chance now.} 28. a3 $18 {[%emt 0:00:15] Active counter play!} (28. bxc4 $2 {is the wrong capture.} Qxa2+ 29. Kc2 Qxc4+ 30. Kd2 Qe4 $19) 28... Na5 {[%emt 0:01:08]} 29. Qe3 {[%emt 0:01:12] Prevents b4.} b4 {[%emt 0:04:37] Hoping for ...bxa3.} 30. a4 {[%emt 0:00:33]} (30. axb4 {gets mated.} Nxb3) 30... Nb7 {[%emt 0:01:14] Black is weak on the light squares} 31. Qe2 {[%emt 0:04:02]} Qa5 {[%emt 0:02:01]} (31... Nc5 {might work better.}) 32. Be3 {[%emt 0:00:25]} Nc5 {[%emt 0:01:26]} 33. Bxc5 {[%emt 0:00:22]} Rxc5 {[%emt 0:03:32]} 34. Rc1 {[%emt 0:02:48]} Ra7 {[%emt 0:01:45]} 35. Bf3 {[%emt 0:01:44]} Qc7 {[%emt 0:01:32]} (35... Qa6 {was called for.} 36. Qxa6 Rxa6) 36. Be4 {[%emt 0:00:49]} Qb6 {[%emt 0:01:51]} (36... h5 $142 37. Qd3 Kh7) 37. h4 {[%emt 0:01:48]} h5 {[%emt 0:00:39]} 38. Qd3 {[%emt 0:00:49][%cal Oe4g6]} Kh7 {[%emt 0:00:39]} 39. Rhd1 {[%emt 0:00:59]} Rac7 {[%emt 0:00:35]} 40. Qd2 {[%emt 0:00:00]} Rd7 {[%emt 0:00:00]} (40... Qa6 $142 41. Rxc5 dxc5) 41. Qe2 {[%emt 0:02:26]} Kg8 {[%emt 0:01:11]} 42. Rxc5 {[%emt 0:08:43]} dxc5 {[%emt 0:04:15] [#]} 43. d6 $1 {[%emt 0:00:46][%mdl 512]} Rxd6 {[%emt 0:08:51]} 44. Rxd6 Qxd6 {[%emt 0:00:07][%mdl 4096] Endgame KQB-KQB} 45. Qc4 {[%emt 0:03:08]} Qd4 {[%emt 0:02:10]} 46. a5 {[%emt 0:00:45][%cal Ba4a5,Ba5a6][%mdl 32] Threatens to win with a6.} ({Inferior is} 46. Bxg6 Qxc4 47. bxc4 fxg6 $11) 46... Qxc4 {[%emt 0:03:57]} 47. bxc4 {[%emt 0:00:05] KB-KB. White mates.} Bd6 {[%emt 0:00:03]} 48. a6 {[%emt 0:00:05]} Bb8 {[%emt 0:00:05]} 49. Kc2 {[%emt 0:00:16]} Kf8 {[%emt 0:00:08]} 50. Kb3 {[%emt 0:00:07]} Ke8 {[%emt 0:00:12]} 51. Ka4 {[%emt 0:01:14]} Kd7 {[%emt 0:00:54]} 52. Kb5 {[%emt 0:00:08]} Ba7 {[%emt 0:01:22]} 53. Bd5 {[%emt 0:00:04]} Kd6 {[%emt 0:00:36]} 54. Bxf7 {[%emt 0:00:31]} e4 {[%emt 0:00:04]} 55. Bxg6 {[%emt 0:00:09]} e3 {[%emt 0:00:03]} 56. Bxh5 {[%emt 0:00:06] Weighted Error Value: White=0.23 (precise) /Black=0.48} 1-0

[Event "Polish Youth B18 Championship 2023"]
[Site "Jastrzebia Gora"]
[Date "2023.03.13"]
[Round "3.11"]
[White "Malik, Maciej"]
[Black "Taranowicz, Michal"]
[Result "0-1"]
[ECO "C11"]
[WhiteElo "2163"]
[BlackElo "1900"]
[Annotator "TA"]
[PlyCount "142"]
[EventDate "2023.03.11"]
[EventType "swiss"]
[EventCountry "POL"]
[SourceTitle "playchess.com"]
[Source "ChessBase"]
[SourceQuality "1"]
[TimeControl "40/5400+30:1800+30"]

{[%evp 16,142,24,29,25,24,30,1,0,0,0,0,33,12,7,0,0,18,1,-32,0,-6,0,-4,0,0,0,-10,-22,-22,-12,-16,0,0,0,0,0,-44,-43,-70,-69,-69,-67,-97,-30,-89,-90,-309,-90,-95,-76,-335,-164,-930,-217,-223,-212,-200,-61,-61,-61,-61,-60,-61,-60,-61,-57,-42,-33,-66,-66,-68,-68,-68,-45,-68,-68,-68,-68,-68,-68,-93,-41,-41,-41,-42,0,0,0,0,0,-48,-41,-163,-61,-61,-61,-205,-205,-485,-479,-474,-458,-430,-417,-566,-538,-996,-885,-1736,-605,-605,-483,-12842,-12843,-12843,-12843,-12844,-12844,-12845,-12845,-12847,-12847,-12847,-12847,-12850,-12849,-27999,-27999]} 1. e4 {[%emt 0:00:30]} e6 {[%emt 0:00:06]} 2. Nf3 {[%emt 0:00:17]} d5 {[%emt 0:00:04]} 3. Nc3 {[%emt 0:00:06]} Nf6 {[%emt 0:00:05]} 4. e5 {[%emt 0:00:51]} Nfd7 {[%emt 0:00:05]} 5. Ne2 {[%emt 0:01:35]} c5 {[%emt 0:00:24]} 6. c3 {[%emt 0:01:11]} Nc6 {[%emt 0:16:30]} 7. d4 {[%emt 0:00:18]} Qb6 {[%emt 0:00:02]} 8. a3 {[%emt 0:12:28]} cxd4 {[%emt 0:03:16]} 9. cxd4 {[%emt 0:00:12]} f6 {[%emt 0:00:44] C11: French: Classical System: 4 e5 and 4 Bg5 dxe4.} 10. exf6 {[%emt 0:18:54]} Nxf6 {[%emt 0:00:05]} 11. Nf4 {[%emt 0:04:01]} Bd6 {[%emt 0:00:33] The position is equal.} 12. Bd3 {[%emt 0:02:30]} O-O {[%emt 0:00:36]} (12... Nxd4 13. Nxd4 e5 14. Nxd5 Qa5+ 15. Nc3 exd4 16. Bb5+ Bd7 17. Bxd7+ (17. Qxd4 Bxb5 18. Qxd6 Bc4 $14) 17... Nxd7 18. Qxd4 $16) 13. O-O {[%emt 0:01:12] [#]} Qc7 $146 {[%emt 0:04:43]} ({Predecessor:} 13... Bd7 14. Ne2 Qc7 15. Nc3 a6 16. Bg5 Kh8 17. Rc1 Be8 18. Bh4 Bh5 19. Bg3 Bxg3 20. hxg3 {0-1 Luz,E (2106)-Santiago,Y (2402) Barreirinhas Athenas op 2015 (6)}) 14. Ne2 {[%emt 0:04:41]} e5 {[%emt 0:03:00]} 15. dxe5 {[%emt 0:02:04]} Nxe5 {[%emt 0:00:06]} 16. Nxe5 {[%emt 0:00:33]} Bxe5 {[%emt 0:00:03]} 17. Ng3 {[%emt 0:00:32]} Bd7 {[%emt 0:01:01]} 18. Qb3 {[%emt 0:02:20]} Bc6 {[%emt 0:01:13]} 19. Bg5 {[%emt 0:03:55]} (19. Be3 {keeps more tension.} Ng4 20. Bc5 Rf7 21. Be2) 19... Kh8 {[%emt 0:00:52]} 20. Qb4 {[%emt 0:03:21]} Ne4 {[%emt 0:03:33]} 21. Bxe4 {[%emt 0:08:08] Bd3 is the strong threat.} dxe4 {[%emt 0:01:25]} 22. Rad1 {[%emt 0:01:14]} Rae8 {[%emt 0:02:04]} (22... a5 $5 {[%cal Ra5b4]} 23. Qb3 a4 $11) 23. Be3 {[%emt 0:01:51]} a5 {[%emt 0:01:11]} 24. Qb3 {[%emt 0:00:40]} a4 {[%emt 0:05:38]} 25. Qb4 {[%emt 0:03:02]} Rf6 {[%emt 0:10:43]} 26. Rd2 {[%emt 0:04:05] [#]} h5 $1 {[%emt 0:01:00]} 27. Rfd1 {[%emt 0:05:10]} (27. Rc1 Rg6) 27... h4 {[%emt 0:01:47]} 28. Nf1 {[%emt 0:00:01] [#]} h3 $1 {[%emt 0:17:05][%mdl 64] Deflection} 29. gxh3 {[%emt 0:10:37]} (29. g3 Qf7) 29... Rf3 {[%emt 0:02:08]} (29... Qc8 $17) 30. Bb6 {[%emt 0:04:04] [#]} (30. Ng3 $11 {remains equal.}) 30... Qf7 $1 $17 {[%emt 0:00:53] Black has more active pieces.} 31. Rd8 $2 {[%emt 0:00:19] [#]} (31. Ng3 $2 Rb3 32. Qc5 e3 33. fxe3 Bxg3 34. hxg3 Qf3 $19) (31. Be3 $17 {only move.}) 31... Rxd8 $2 {[%emt 0:02:21]} (31... Rxh3 32. Rxe8+ Bxe8 33. Qxe4 $11) (31... Rb3 $1 $19 {[%cal Rb3b4] has better winning chances.} 32. Rxe8+ Qxe8) 32. Rxd8+ {[%emt 0:00:12] White is weak on the light squares} Kh7 {[%emt 0:00:04]} 33. Qd2 $2 {[%emt 0:01:45][%mdl 8192]} (33. Ng3 $2 Rb3 34. Qc5 Rb5 $19) (33. Be3 $17) 33... Rxh3 {[%emt 0:02:42]} (33... Rb3 $142 34. Be3 Bxb2) 34. Qg5 {[%emt 0:01:02]} (34. Ng3) 34... Rh5 $2 {[%emt 0:03:25]} (34... e3 35. Nxe3 Rxh2) 35. Qg4 $19 {[%emt 0:00:13]} Bf6 {[%emt 0:00:05] This pair of bishops is nice.} (35... Bxb2 36. Ng3 Rh6 37. Be3 $15) 36. Rf8 {[%emt 0:00:09] Dodges Rg5} Qg6 {[%emt 0:00:06]} (36... Qxf8 37. Qxh5+ Kg8 38. Qe2 $17) (36... Qd5 $19 {( -> ...Rg5)} 37. Ng3 Rh4 38. Qf5+ Qxf5 39. Nxf5 Rg4+ 40. Ng3 Bxb2) 37. Rh8+ $1 $15 {[%emt 0:00:41][%mdl 64] Deflection} Kxh8 {[%emt 0:00:04]} 38. Qxg6 {[%emt 0:00:06]} Rg5+ {[%emt 0:00:07]} 39. Qxg5 $1 {[%emt 0:00:05]} Bxg5 {[%emt 0:00:04][%mdl 4096] Endgame KBB-KBN} 40. Bd4 {[%emt 0:00:00]} Kg8 {[%emt 0:00:00]} 41. Ne3 {[%emt 0:01:51]} Bf4 {[%emt 0:05:41]} 42. Bc3 {[%emt 0:15:01]} Kf7 {[%emt 0:01:22]} 43. Bd4 {[%emt 0:03:40]} g5 {[%emt 0:00:46]} 44. Ng2 {[%emt 0:01:22]} Bd6 {[%emt 0:02:55]} 45. Ne3 {[%emt 0:03:11]} Ke6 {[%emt 0:00:48]} 46. Bc3 {[%emt 0:00:45]} Bb5 {[%emt 0:01:30]} 47. Bd4 {[%emt 0:01:12]} Be2 {[%emt 0:00:51]} 48. Bc3 {[%emt 0:00:31]} Kf7 {[%emt 0:02:25]} (48... g4 $17) 49. Nf5 {[%emt 0:01:18]} Bf4 {[%emt 0:00:55]} 50. h4 {[%emt 0:04:59]} g4 {[%emt 0:05:54]} 51. h5 {[%emt 0:00:44]} Bc4 {[%emt 0:03:54]} 52. Kg2 {[%emt 0:04:08]} Kg8 {[%emt 0:00:49]} 53. h6 {[%emt 0:02:29]} (53. Ne7+ $11 Kh7 54. Ng6) 53... Kh7 {[%emt 0:00:39]} 54. Ng3 {[%emt 0:00:40]} (54. Ne3 $15 Be6 55. Bd2) 54... Bd5 {[%emt 0:01:16]} ({Better is} 54... Kxh6 $19 {White must now prevent ...Kg6.} 55. Nf5+ Kh7) 55. Nh5 $1 {[%emt 0:00:07]} e3+ {[%emt 0:01:51]} (55... Bxh6 $2 56. Nf6+ Kg6 57. Nxd5 $18) 56. Kg1 {[%emt 0:00:23] White is now going downhill.} (56. Kf1 $1 $15 Bg5 57. Nf6+ Bxf6 58. Bxf6) 56... Bg5 $19 {[%emt 0:00:42] Threatens to win with ...e2.} ({Resist} 56... Bxh6 57. Nf6+ Kg6 58. Nxd5 $18) ({Not} 56... exf2+ 57. Kxf2 Bg5 58. Nf6+ Bxf6 59. Bxf6 $15) 57. fxe3 {[%emt 0:01:10]} (57. Nf6+ Bxf6 58. Bxf6) 57... Bxe3+ {[%emt 0:00:11]} ({Don't play} 57... Bxh6 58. Nf6+ Kg6 59. Nxd5 $18) 58. Kf1 {[%emt 0:00:29] Strongly threatening Nf6+.} Kxh6 {[%emt 0:00:22]} (58... Bxh6 $2 59. Nf6+ Kg6 60. Nxd5 $18) 59. Ng3 {[%emt 0:00:15] aiming for Nf5+.} Kg5 {[%emt 0:00:31] Inhibits Nf5. And now ...Kf4 would win.} 60. Ke2 {[%emt 0:00:42]} Bf4 {[%emt 0:00:49]} 61. Kf2 {[%emt 0:00:01]} Kh4 {[%emt 0:01:05]} 62. Nf1 {[%emt 0:00:32]} Kh3 {[%emt 0:02:02]} (62... g3+ $142 63. Nxg3 Bxg3+ 64. Ke3 b5) 63. Bd4 {[%emt 0:00:20]} Bc4 {[%emt 0:00:32] Hoping for ...Bxf1.} 64. Kg1 {[%emt 0:01:12]} (64. Ne3 $142 Bg3+ 65. Kg1 Bh2+ 66. Kf2 g3+ 67. Kf3) 64... Bxf1 {[%emt 0:08:11]} 65. Kxf1 {[%emt 0:00:02] KB-KB} g3 {[%emt 0:00:08][%cal Bg4g3,Bg3g2][%mdl 32]} 66. Ke2 {[%emt 0:00:54]} g2 {[%emt 0:00:07]} 67. Kd3 {[%emt 0:00:16] [#]} Be5 $1 {[%emt 0:00:07][%mdl 576] Deflection, Promotion} 68. Bg1 {[%emt 0:00:22]} (68. Bxe5 g1=Q) 68... Bxb2 {[%emt 0:00:46]} 69. Kc4 {[%emt 0:00:01]} Bxa3 {[%emt 0:00:09]} 70. Kb5 {[%emt 0:00:04]} Bd6 {[%emt 0:00:06]} 71. Kxa4 {[%emt 0:00:05]} Bh2 {[%emt 0:00:06] An entertaining game by Taranowicz.   Weighted Error Value: White=0.45/Black=0.33} 0-1

[Event "Polish Youth B18 Championship 2023"]
[Site "Jastrzebia Gora"]
[Date "2023.03.13"]
[Round "3.12"]
[White "Wojdak, Jan"]
[Black "Madajczak, Piotr"]
[Result "1/2-1/2"]
[ECO "B13"]
[WhiteElo "2097"]
[BlackElo "1897"]
[Annotator "TA"]
[PlyCount "116"]
[EventDate "2023.03.11"]
[EventType "swiss"]
[EventCountry "POL"]
[SourceTitle "playchess.com"]
[Source "ChessBase"]
[SourceQuality "1"]
[TimeControl "40/5400+30:1800+30"]

{[%evp 19,116,28,29,29,33,24,16,19,14,0,4,-22,-13,-25,0,-19,-19,-14,-24,-25,-24,-64,-66,-62,41,44,55,53,91,84,80,68,94,0,0,0,8,0,14,-110,-73,-118,-42,-91,-108,-141,-140,-131,-114,-120,-82,-77,-82,-82,-82,-82,-82,-148,-148,-157,-132,-134,-110,-106,-98,-109,-93,-112,-87,-77,-72,-72,-53,-53,-53,-54,0,-24,0,-52,-53,-66,-56,-84,-81,-74,-62,-91,-50,-52,-10,-10,0,0,0,-31,-31,-45,0]} 1. e4 {[%emt 0:00:03]} c6 {[%emt 0:00:08]} 2. d4 {[%emt 0:00:09]} d5 {[%emt 0:00:07]} 3. exd5 {[%emt 0:00:19]} cxd5 {[%emt 0:00:08]} 4. Bd3 {[%emt 0:00:10]} Nc6 {[%emt 0:00:16]} 5. c3 {[%emt 0:00:06]} Nf6 {[%emt 0:00:07]} 6. Bf4 {[%emt 0:00:11]} Bg4 {[%emt 0:00:47]} 7. Qb3 {[%emt 0:00:10]} Qd7 {[%emt 0:00:11]} 8. Nd2 {[%emt 0:00:17]} e6 {[%emt 0:00:51]} 9. Ngf3 {[%emt 0:00:07]} Bd6 $1 {[%emt 0:00:46][%mdl 4] outshines the older 9...Bxf3.} 10. Bxd6 {[%emt 0:00:13]} Qxd6 {[%emt 0:00:06]} 11. O-O {[%emt 0:00:06] B13: Caro-Kann: Exchange Variation and Panov-Botvinnik Attack.} O-O {[%emt 0:00:11]} 12. Rae1 {[%emt 0:00:12]} Ne7 {[%emt 0:07:01]} 13. Ne5 {[%emt 0:05:30] The position is equal.} ({Much weaker is} 13. Qxb7 Rfb8 14. Qa6 Qxa6 15. Bxa6 Rxb2 $17) 13... Bf5 {[%emt 0:00:23]} 14. Re3 {[%emt 0:22:17]} (14. Qxb7 $2 {too greedy.} Bxd3 15. Nxd3 Rfb8 $19) 14... Rab8 {[%emt 0:10:40] [#]} 15. Rfe1 $146 {[%emt 0:01:01] [#]} ({Predecessor:} 15. Qd1 b5 16. Nb3 b4 17. Nc5 bxc3 18. bxc3 Bxd3 19. Qxd3 Nc6 20. f4 Rb2 21. Qa6 {0-1 Kobalia,M (2596)-Svane,R (2637) Titled Tuesday intern op 22nd Feb Early blitz 2022 (5)}) 15... b5 $1 {[%emt 0:05:09]} 16. a3 {[%emt 0:03:42]} (16. Bxb5 $2 {is the wrong capture.} a6 17. a4 axb5 18. axb5 Rb7 $19) (16. Rc1 Nd7) 16... a5 {[%emt 0:35:04]} 17. Bxf5 {[%emt 0:00:14]} Nxf5 {[%emt 0:00:17]} 18. Rh3 {[%emt 0:00:13]} b4 {[%emt 0:01:54]} 19. axb4 {[%emt 0:00:25]} axb4 {[%emt 0:00:05]} 20. Qc2 {[%emt 0:06:30]} bxc3 {[%emt 0:04:26]} 21. bxc3 {[%emt 0:00:15]} g6 {[%emt 0:07:14]} (21... Rfc8 $15 22. Qd1 Ne7) 22. g4 $14 {[%emt 0:01:39]} Ng7 {[%emt 0:00:01]} 23. Qc1 {[%emt 0:03:43]} h5 {[%emt 0:02:20]} 24. gxh5 {[%emt 0:04:15]} Ngxh5 {[%emt 0:04:23] [#]} 25. Ndf3 $1 {[%emt 0:05:55]} Kg7 {[%emt 0:03:02] Repels Qh6+} 26. Nh4 {[%emt 0:07:03]} (26. Kh1 $16) 26... Rh8 {[%emt 0:02:08][%cal Bf8h8,Bh8h6,Bh6h7][%mdl 32]} 27. Rf3 {[%emt 0:08:30] Strongly threatening Qg5.} Rb7 {[%emt 0:01:43]} 28. Qg5 {[%emt 0:04:55][%cal Rh4g6] Nhxg6! is the strong threat.} Rh6 {[%emt 0:03:15]} 29. Qd2 {[%emt 0:04:45]} (29. h3 $11) 29... Qd8 {[%emt 0:05:39]} 30. Qg5 {[%emt 0:00:11] Black must now prevent Ng4.} Qb8 {[%emt 0:02:39]} (30... Qg8 $17 31. Rfe3 Ne4 32. Rxe4 dxe4) 31. Qe3 {[%emt 0:03:59]} (31. Nxf7 $1 $15 {is superior.} Rxf7 32. Rxe6 Qb1+ 33. Kg2) 31... Rh7 $17 {[%emt 0:01:59]} 32. Rh3 {[%emt 0:03:16]} Rb1 {[%emt 0:00:57]} 33. Nhf3 {[%emt 0:00:59]} Rxe1+ {[%emt 0:01:22]} 34. Qxe1 {[%emt 0:02:44]} Nf4 {[%emt 0:01:34]} 35. Rxh7+ {[%emt 0:00:13]} Nxh7 {[%emt 0:00:02]} 36. Nd7 {[%emt 0:05:38]} Qc7 {[%emt 0:00:02]} 37. Nc5 {[%emt 0:00:28]} Nf6 {[%emt 0:01:15]} 38. Ne5 {[%emt 0:01:34] [#] Wards off Ng4} ({White should try} 38. Qe5 Qxe5 39. dxe5) 38... Qa5 $1 {[%emt 0:00:37]} 39. Kh1 {[%emt 0:01:27]} Qa2 {[%emt 0:00:27]} 40. Ncd3 {[%emt 0:00:00]} Nxd3 {[%emt 0:00:00]} 41. Nxd3 {[%emt 0:02:30][%mdl 4096] Endgame KQN-KQN} Qc2 {[%emt 0:01:09]} 42. Nc5 {[%emt 0:02:12]} Qf5 {[%emt 0:05:05]} 43. Qe2 {[%emt 0:01:57]} Qh3 {[%emt 0:07:36]} 44. f3 {[%emt 0:01:12]} Nh5 {[%emt 0:00:50] ( -> ...Ng3+)} 45. Kg1 {[%emt 0:00:27]} Kg8 {[%emt 0:01:40] ...Nf4 would be deadly.} 46. Nd3 {[%emt 0:00:15] Against Nf4} Qh4 {[%emt 0:00:28]} 47. Qe5 {[%emt 0:03:10] Dodges Nf4} Qh3 {[%emt 0:00:54]} (47... Qd8 $15) 48. Kf2 {[%emt 0:01:37]} Qh4+ {[%emt 0:01:43]} 49. Kg1 {[%emt 0:00:11]} Qd8 {[%emt 0:01:32]} 50. Qe1 {[%emt 0:04:16]} Qg5+ {[%emt 0:00:21]} 51. Kh1 {[%emt 0:00:12]} Ng7 {[%emt 0:01:51]} 52. Qc1 {[%emt 0:06:38]} Qf5 {[%emt 0:05:18]} 53. Qe3 {[%emt 0:00:07]} Qh3 {[%emt 0:00:13] And now ...Qf1+ would win.} 54. Kg1 {[%emt 0:01:22] Prevents Qf1+.} Nf5 {[%emt 0:00:17]} 55. Qf4 {[%emt 0:00:27]} Nh4 {[%emt 0:02:58][%csl Gh4][%cal Rh3g2]} 56. Ne1 {[%emt 0:00:05] Inhibits Qg2+.} Nf5 {[%emt 0:00:42]} 57. Qb8+ {[%emt 0:00:50]} Kg7 {[%emt 0:01:01]} 58. Qe5+ {[%emt 0:00:06]} Kg8 {[%emt 0:00:19] Black had all chances to win.   Weighted Error Value: White=0.16 (very precise) /Black=0.17 (very precise)} 1/2-1/2